Cogmind - Beta 15 @@@ ROGUE MODE // 2025.07.31 @ 16:03:47 Player: SpaceExplorer337 Result: Destroyed by Y-45 Defender with Beam Rifle Performance ------------- Evolutions (2) 1000 Regions Visited (4) 800 Robots Destroyed (54) 270 Value Destroyed (1662) 1662 Prototype IDs (1) 20 Alien Tech Used (0) 0 Bonus (77) 77 TOTAL SCORE: 3829 Bonus ------- High Alert Combat Kills 77 Cogmind --------- Core Integrity 0/550 Matter 215/300 Energy 75/100 System Corruption 3% Temperature Cool (9) Movement Core (150) Ox2 Location -8/Materials Parts ------- > --- POWER (1) -------- (None) > --- PROPULSION (3) --- (None) > --- UTILITY (5) ------ Small Storage Unit Visual Processing Unit > --- WEAPON (2) ------- Assault Rifle > --- INVENTORY (8) ---- Heavy Ion Engine Light Nuclear Core Light Nuclear Core Improved Heat Sink Cooling System Peak State ------------ > --- POWER ------------ Heavy Ion Engine > --- PROPULSION ------- Carbon-fiber Leg Carbon-fiber Leg Titanium Leg > --- UTILITY ---------- Heat Sink Cooling System Small Storage Unit Visual Processing Unit Improved Sensor Array > --- WEAPON ----------- Improved Grenade Launcher Improved Grenade Launcher > --- INVENTORY -------- Heavy Ion Engine Heavy Ion Engine Light Nuclear Core Cooling System Large Battery Particle Gun Assault Rifle Assault Cannon [Rating: 28] Favorites ----------- Power Heavy Ion Engine Engine Heavy Ion Engine Propulsion Aluminum Leg Leg Aluminum Leg Utility Visual Processing Unit Device Heat Sink Storage Small Storage Unit Processor Visual Processing Unit Weapon Assault Rifle Energy Gun Particle Gun Ballistic Gun Assault Rifle Ballistic Cannon Assault Cannon Launcher Improved Grenade Launcher Build | -11 -10 -10 -10 -8 ------- Run | Yrd Mat Min Sub Mat Slots Evolved 4 | . . . . 4 Power . | . . . . . Propulsion 1 | . . . . 1 Utility 3 | . . . . 3 Weapon . | . . . . . Parts Attached 30 | 5 3 . . 22 Power 2 | . 1 . . 1 Engine 2 | . 1 . . 1 Core . | . . . . . Reactor . | . . . . . Propulsion 7 | 2 1 . . 4 Treads . | . . . . . Leg 7 | 2 1 . . 4 Wheel . | . . . . . Hover . | . . . . . Flight . | . . . . . Utility 8 | 1 1 . . 6 Device 4 | . 1 . . 3 Storage 2 | 1 . . . 1 Processor 2 | . . . . 2 Hackware . | . . . . . Protection . | . . . . . Artifact . | . . . . . Weapon 13 | 2 . . . 11 Energy Gun 1 | . . . . 1 Energy Cannon . | . . . . . Ballistic Gun 7 | 2 . . . 5 Ballistic Cannon 2 | . . . . 2 Launcher 3 | . . . . 3 Special Weapon . | . . . . . Impact Weapon . | . . . . . Slashing Weapon . | . . . . . Piercing Weapon . | . . . . . Special Melee Weapon . | . . . . . Unidentified Prototypes 1 | . 1 . . . Parts Lost 23 | . 1 . 2 20 Power 2 | . . . . 2 Propulsion 7 | . 1 . . 6 Utility 4 | . . . . 4 Weapon 10 | . . . 2 8 Highest Loss Streak 8 | . 1 . 2 8 To Critical Strikes . | . . . . . Average Backups 6 | 2 4 6 7 7 Power 3 | 1 3 4 4 3 Propulsion . | . . . . . Utility 1 | . . 1 2 1 Weapon 1 | . 1 1 1 2 Tool/Special . | . . . . . Unused Backups 8 | . . . . 8 Power 5 | . . . . 5 Propulsion . | . . . . . Utility 2 | . . . . 2 Weapon 1 | . . . . 1 Tool/Special . | . . . . . Average Slot Usage (%) 80 | . 85 100 97 76 Engine 9 | . 7 14 14 8 Leg 16 | . 26 28 28 12 Device 14 | . 7 14 14 15 Storage 10 | . 14 14 14 9 Processor 9 | . . . . 12 Energy Gun 2 | . . . . 2 Ballistic Gun 10 | . 28 28 25 4 Ballistic Cannon 3 | . . . . 5 Launcher 3 | . . . . 4 Peak Build Rating 28 | 5 12 12 12 28 Average Rating 17 | 3 8 12 11 20 On Entrance 7 | . 5 12 12 10 Naked Turns . | . . . . . Heaviest Build 29 | 9 18 18 18 29 Greatest Support 47 | 20 20 20 20 47 Greatest Overweight (x) 8 | . . . . 8 Average Overweight (x) . | . . . . 1 Largest Inventory Capacity 8 | 8 8 8 8 8 Average Capacity 7 | 7 8 8 8 8 Most Carried 8 | 5 6 7 7 8 Average Carried 6 | 2 4 6 7 7 Final Capacity 8 | 8 8 8 8 8 Final Carried 7 | 4 6 7 7 5 Class Distribution -------------------- 100% | Mutant Dominant Class ---------------- Mutant | -10/Materials Mutant | -10/Mines Mutant | -10/Subcaves Mutant | -8/Materials Resources | -11 -10 -10 -10 -8 ----------- Run | Yrd Mat Min Sub Mat Matter Collected 1369 | 286 147 64 . 872 Remotely . | . . . . . Salvage Created 1601 | 121 241 . . 1239 Parts 89 | 11 14 . . 64 Haulers Intercepted 1 | . 1 . . . Recyclers Shooed 4 | . 2 . . 2 Parts Field Recycled . | . . . . . Retrieved Matter . | . . . . . Parts Self-Destructed . | . . . . . Prevented . | . . . . . Kills | -11 -10 -10 -10 -8 ------- Run | Yrd Mat Min Sub Mat Combat Hostiles Destroyed 37 | . 6 . . 31 Guns 16 | . 5 . . 11 Cannons 5 | . . . . 5 AOE 16 | . 1 . . 15 Classes Destroyed 14 | 2 4 . . 8 Worker 4 | . 1 . . 3 Builder 1 | . . . . 1 Tunneler 2 | 2 . . . . Hauler 1 | . 1 . . . Recycler 4 | 1 1 . . 2 Mechanic 1 | . . . . 1 Operator 1 | . . . . 1 Watcher 3 | . . . . 3 Swarmer 7 | . 3 . . 4 Grunt 20 | . 3 . . 17 Brawler 1 | . . . . 1 Duelist 2 | . . . . 2 Sentry 6 | . . . . 6 Hunter 1 | . . . . 1 Best Kill Streak 11 | 3 3 . . 11 Combat Bots Only 9 | . 3 . . 9 Max Kills in Single Turn 3 | 1 2 . . 3 Gunslinging . | . . . . . Exploded 3 | . 1 . . 3 Melee . | . . . . . Uniques/NPCs Destroyed . | . . . . . Combat | -11 -10 -10 -10 -8 -------- Run | Yrd Mat Min Sub Mat Hostile Shots Fired 286 | . 47 . 7 232 Missed 92 | . 16 . 2 74 Hits 194 | . 31 . 5 158 Melee 3 | . . . . 3 Projectile 191 | . 31 . 5 155 Critical Strikes 8 | . 2 . . 6 Damage Taken 2984 | . 408 . 102 2474 Core 634 | . 73 . . 561 Absorbed by Shields . | . . . . . Core Remaining (%) 85 | 100 . . 70 . Volleys Fired 130 | 6 31 . 6 87 Largest 2 | 2 2 . 2 2 Hottest 102 | 40 40 . 40 102 Shots Fired 237 | 12 62 . 7 156 Gun 161 | 12 62 . 7 80 Cannon 53 | . . . . 53 Launcher 23 | . . . . 23 Special . | . . . . . Kinetic 188 | 12 62 . 7 107 Thermal 26 | . . . . 26 Explosive 23 | . . . . 23 Electromagnetic . | . . . . . Robot Hit Streak 11 | 3 5 . 4 11 Robot Miss Streak 4 | 2 4 . 1 3 Penetration Max . | . . . . . Secondary Targets . | . . . . . Shots Hit Robots 127 | 7 25 . 5 90 Core Hits 99 | 4 12 . 1 82 Critical Kills . | . . . . . Critical Parts Destroyed 1 | . . . . 1 Critical Strikes 3 | . . . . 3 Destroy 1 | . . . . 1 Blast 2 | . . . . 2 Melee Attacks . | . . . . . Impact . | . . . . . Slashing . | . . . . . Piercing . | . . . . . Sneak Attacks . | . . . . . Combat Hostiles . | . . . . . Follow-up Attacks . | . . . . . Damage Inflicted 4279 | 87 615 . 66 3511 Guns 1328 | 87 332 . 66 843 Cannons 785 | . . . . 785 Explosions 2166 | . 283 . . 1883 Melee . | . . . . . Ramming . | . . . . . Kinetic 1889 | 87 332 . 66 1404 Thermal 224 | . . . . 224 Explosive 2121 | . 283 . . 1838 Electromagnetic 45 | . . . . 45 Impact . | . . . . . Slashing . | . . . . . Piercing . | . . . . . Highest Corruption 3 | . . . . 3 Average Corruption 2 | . . . . 2 Corruption Purged . | . . . . . Corruption Blocked . | . . . . . Effects 2 | . . . . 2 Energy Discharges 1 | . . . . 1 Parts Fused 1 | . . . . 1 Overload Shots . | . . . . . Overflow Damage 142 | . 14 . . 128 Projectiles 8 | . . . . 8 Explosions 134 | . 14 . . 120 Melee . | . . . . . Knockbacks 13 | . . . . 13 Impact . | . . . . . Kinetic 11 | . . . . 11 Secondary 2 | . . . . 2 Self-Inflicted Damage 312 | . 52 . . 260 Shots 7 | . 1 . . 6 Rammed . | . . . . . Targets Rammed . | . . . . . Kicked . | . . . . . Crushed . | . . . . . Highest Temperature 230 | . 15 . . 230 Average Temperature 51 | . 6 . . 52 Received Heat Transfer 1197 | . 189 . . 1008 Siege Activations . | . . . . . Martial Activations . | . . . . . Shielding Activations . | . . . . . Robots Disrupted . | . . . . . Combat Hostiles . | . . . . . Robots Corrupted . | . . . . . Combat Hostiles . | . . . . . Parts Fried . | . . . . . Impact Corruptions . | . . . . . Robots Melted . | . . . . . Combat Hostiles . | . . . . . Parts Melted . | . . . . . Heat Transferred 518 | . . . . 518 Parts Sabotaged . | . . . . . Parts Stolen . | . . . . . Parts Stripped . | . . . . . Power Chain Reactions . | . . . . . Alert | -11 -10 -10 -10 -8 ------- Run | Yrd Mat Min Sub Mat Maximum Alert Level 2 | . . . . 2 Low Security (%) 65 | 100 100 100 . 53 Level 1 20 | . . . . 28 Level 2 13 | . . . . 18 Level 3 . | . . . . . Level 4 . | . . . . . Level 5 . | . . . . . High Security . | . . . . . Max Security . | . . . . . Peak Influence 485 | 10 92 24 . 485 Initial 24 | . . 24 . . Average 154 | 1 58 5 . 198 Influence Increases 1267 | 15 212 . . 1040 Destroy 0b10 Robot/C 740 | . 120 . . 620 Destroy 0b10 Robot/NC 85 | 15 15 . . 55 Destroy Leader 188 | . 22 . . 166 Disable Machine 105 | . 30 . . 75 Destroy Structure 149 | . 25 . . 124 Influence Decreases 797 | 15 150 62 . 570 Entered New Map 38 | . . 38 . . Time Decay 579 | 15 140 24 . 400 Lost Part 180 | . 10 . . 170 Squads Dispatched 9 | . 1 . . 8 Investigation 1 | . . . . 1 Extermination . | . . . . . Reinforcement 5 | . 1 . . 4 Assault . | . . . . . Garrison 3 | . . . . 3 Intercept . | . . . . . Searches Triggered . | . . . . . Construction Impeded 1 | . . . . 1 Haulers Reinforced . | . . . . . Active Scanning Responses . | . . . . . Cargo Convoy Interrupts . | . . . . . Stealth | -11 -10 -10 -10 -8 --------- Run | Yrd Mat Min Sub Mat Distress Signals 3 | . 1 . . 2 Communications Jammed . | . . . . . Distress Signals . | . . . . . Times Spotted 55 | . 11 . 1 43 Peak Tracking Total 9 | . 5 . 1 9 Tactical Retreats . | . . . . . Traps | -11 -10 -10 -10 -8 ------- Run | Yrd Mat Min Sub Mat Traps Triggered 2 | . . . . 2 Indirectly . | . . . . . Trap Hack Attempts . | . . . . . Triggered . | . . . . . Disarmed . | . . . . . Reprogrammed . | . . . . . Reused . | . . . . . Traps Extracted . | . . . . . Installed . | . . . . . Triggered . | . . . . . Machines | -11 -10 -10 -10 -8 ---------- Run | Yrd Mat Min Sub Mat Machines Disabled 7 | . 2 . . 5 Max in Single Turn 1 | . 1 . . 1 Machines Repaired . | . . . . . Machines Dismantled . | . . . . . Machines Sabotaged . | . . . . . Overloaded Fab Kills . | . . . . . Hacking | -11 -10 -10 -10 -8 --------- Run | Yrd Mat Min Sub Mat Machines Accessed 4 | . 2 . . 2 Terminals 4 | . 2 . . 2 Fabricators . | . . . . . Repair Stations . | . . . . . Recycling Units . | . . . . . Scanalyzers . | . . . . . Garrison Access . | . . . . . Total Hacks 11 | . 4 . . 7 Successful 7 | . 3 . . 4 Failed 4 | . 1 . . 3 Catastrophic 1 | . . . . 1 Database Lockouts . | . . . . . Manual . | . . . . . Terminals 11 | . 4 . . 7 Fabricators . | . . . . . Repair Stations . | . . . . . Recycling Units . | . . . . . Scanalyzers . | . . . . . Garrison Access . | . . . . . Terminal Hacks 7 | . 3 . . 4 Record 4 | . 1 . . 3 Zone Layout 3 | . 2 . . 1 Fabricator Hacks . | . . . . . Repair Station Hacks . | . . . . . Recycling Unit Hacks . | . . . . . Scanalyzer . | . . . . . Garrison Access Hacks . | . . . . . Unauthorized Hacks . | . . . . . Terminals . | . . . . . Fabricators . | . . . . . Repair Stations . | . . . . . Recycling Units . | . . . . . Scanalyzers . | . . . . . Garrison Access . | . . . . . Data Cores Recovered . | . . . . . Used . | . . . . . Hacking Detections 4 | . 2 . . 2 Full Trace Events 1 | . . . . 1 Feedback Events . | . . . . . Feedback Blocked . | . . . . . Robot Schematics Acquired . | . . . . . Robots Built . | . . . . . Authchips . | . . . . . Time . | . . . . . Total Robot Build Rating . | . . . . . Part Schematics Acquired . | . . . . . Parts Built . | . . . . . Authchips . | . . . . . Time . | . . . . . Total Part Build Rating . | . . . . . Parts Repaired . | . . . . . Time . | . . . . . Parts Recycled . | . . . . . Recycled Matter . | . . . . . Retrieved Matter . | . . . . . Retrieved Components . | . . . . . Parts Scanalyzed . | . . . . . Part Schematics Acquired . | . . . . . Parts Damaged . | . . . . . Bothacking | -11 -10 -10 -10 -8 ------------ Run | Yrd Mat Min Sub Mat Used RIF Installer . | . . . . . Robots Hacked . | . . . . . Non-combat . | . . . . . Combat . | . . . . . Robot Hacks Applied . | . . . . . Relay Couplers Released . | . . . . . Fabnet Peak Effective % . | . . . . . Robots Rewired . | . . . . . Allies Hacked . | . . . . . Hacks Repelled . | . . . . . Allies | -11 -10 -10 -10 -8 -------- Run | Yrd Mat Min Sub Mat Total Allies . | . . . . . Largest Group . | . . . . . Highest-Rated Group . | . . . . . Highest-Rated Ally . | . . . . . Total Orders . | . . . . . Ally Attacks . | . . . . . Total Damage . | . . . . . Kills . | . . . . . Allies Corrupted . | . . . . . Allies Melted . | . . . . . Intel | -11 -10 -10 -10 -8 ------- Run | Yrd Mat Min Sub Mat Active Infowar (turns) 1871 | . 162 151 55 1503 Optics 1461 | . . . . 1461 Sensors 647 | . . . . 647 Terrain 476 | . 162 151 55 108 Robot Analysis Total . | . . . . . Derelict Logs Recovered 1 | . . . 1 . Drone Launches . | . . . . . Drone Recoveries . | . . . . . Exploration | -11 -10 -10 -10 -8 ------------- Run | Yrd Mat Min Sub Mat Turns Passed 2108 | 91 308 151 55 1503 Spaces Moved 976 | 54 172 126 36 588 Core 129 | 7 . . . 122 Treads . | . . . . . Legs 847 | 47 172 126 36 466 Wheels . | . . . . . Hover . | . . . . . Flight . | . . . . . Fastest Speed 50 | 50 120 120 120 120 Average Speed 157 | 110 120 120 120 183 Slowest Speed 450 | 120 120 120 120 450 Overloaded Moves . | . . . . . Propulsion Burnouts . | . . . . . Robots Hopped . | . . . . . Potential Cave-ins . | . . . . . Cave-ins Triggered . | . . . . . Exploration Rate (%) 24 | 4 32 26 3 59 Regions Visited 4 Branch Regions 2 Pre-discovered Areas . | . . . . . Known Exits Taken . | . . . . . Unknown Exits Taken 4 | 1 1 1 1 . Scrap Searched . | . . . . . Spaces Dug . | . . . . . Terrain Destroyed 166 | . 27 . . 139 Melee . | . . . . . Projectile 8 | . . . . 8 AOE 158 | . 27 . . 131 Terrain Rammed . | . . . . . Walls Destroyed . | . . . . . Machines Disabled . | . . . . . Actions | -11 -10 -10 -10 -8 --------- Run | Yrd Mat Min Sub Mat Total 1315 | 73 211 126 41 864 Wait 137 | . 1 . . 136 Move 972 | 53 171 125 35 588 Hop . | . . . . . Pick Up 34 | 9 5 1 . 19 Fast Attach 5 | . . . . 5 Attach 24 | 5 3 . . 16 Detach 1 | . . . . 1 Swap 5 | . . . . 5 Drop 7 | . . . . 7 Fire 130 | 6 31 . 6 87 Melee . | . . . . . Ram . | . . . . . Kick . | . . . . . Crush . | . . . . . Escape Stasis . | . . . . . Rewire . | . . . . . Trap . | . . . . . Miscellaneous . | . . . . . Route ------- -11/Scrapyard -10/Materials (discovered 2 exits: [Mat] / [*Min]) -10/Mines -10/Subcaves -8/Materials History --------- Turn | Location | Event 33 | -11/Scrapyard | Discovered new exit (range 16) 92 | -11/Scrapyard | Entered Materials 249 | -10/Materials | Discovered new exit (range 13) 316 | -10/Materials | Build established: Mutant 351 | -10/Materials | Discovered new exit (range 9) 400 | -10/Materials | Entered Mines 401 | -10/Mines | Assembled infested the area 414 | -10/Mines | Met a Derelict bent on vengeance 542 | -10/Mines | Discovered new exit (range 5) 551 | -10/Mines | Entered Subcaves 553 | -10/Subcaves | Learned 2 Materials zone layouts 559 | -10/Subcaves | Discovered new exit (range 14) 591 | -10/Subcaves | Disturbed a concealed Subdweller 606 | -10/Subcaves | Entered Materials 606 | -8/Materials | Evolved 4 slots: Propulsion x1, Utility x3 756 | -8/Materials | Lost 3 parts (2n1u) 1104 | -8/Materials | Garrison activated, responded to threat 1439 | -8/Materials | Destroyed 9 combat bots 1474 | -8/Materials | Core integrity fell below 50% 1809 | -8/Materials | Lost 4 parts (1p1u2w) 1831 | -8/Materials | Core integrity fell below 20% 1850 | -8/Materials | Lost 3 parts (1n1u1w) 2109 | -8/Materials | Destroyed by Y-45 Defender with Beam Rifle Last Messages --------------- 02077_ W-25 Informer sends out distress signal. 02083_ Titanium Leg destroyed. 02087_ Discarded Hvy. Assault Rifle. 02090_ Destroyed Hacking Suite. 02090_ O-16 Technician destroyed. 02090_ M-13 Machinist destroyed. 02092_ Minigun destroyed. 02092_ Aluminum Leg destroyed. 02093_ G-47 Trooper destroyed. 02093_ W-25 Informer destroyed. 02095_ Destroyed Lgt. Nuclear Core. 02097_ Critical hit (Burn: +37). 02101_ Imp. Grenade Launcher destroyed. 02101_ Destroyed Imp. Grenade Launcher. 02101_ Hvy. Ion Engine destroyed. 02101_ Destroyed Hvy. Ion Engine. 02105_ U-05 Engineer builds a Wall. 02108_ System corrupted: Energy discharge (-29). 02108_ R-06 Scavenger collects Aluminum Leg. 02109_ U-05 Engineer lays Concrete. Map ----- +----------------------------------------------------+ | | | | | | | | | | | | | | | | | | | | | | | | | | | | | | | ???#############???????????###########????????? | | ???# #???????????# #????????? | | ???# ! ##??????????#"" #????????? | | ???# ]# ?????????#"T """ #????????? | | ???# """ """ ##??????#"" """ #????????? | | ???# """ """ ###????# """ #????????? | | ???# """ """ ???# #????????? | | ???# #?## ![* #????????? | | #########/### * [ # # %!%=! #????????? | | "T" ur %% %! #####+#####????????? | | ## != % !!! Y@ [!= #??????????? | | "" #???# !! g [= #??????????? | | "" #???# !! ##########????????? | | "" #???# # #????????? | | #???# ! + + """ #????????? | | #???######+### # """ "T" #????????? | | "" """" #????????# #?# # """ ?????????? | | "" """" #????????# #?# # """ ?????????? | | "" """" #????????# #?# # """ ??????????? | | #???????## ### # """ ? ?????????? | | #???????# # ?? ?????????? | | "" """" #???????# #######????????????? | | "" """" #???#####/##### #??????????????????? | | "" """" ##### """ # #??????????????????? | | + "T" # #??????????????????? | | ##### # #??????????????????? | | #########+###### """ """ # #??????????????????? | | #?# # """ """ # #??????????????????? | | ### # """ """ # #??????????????????? | | # ? # # #??????????????????? | | ### """ """ # # #??????????????????? | | #?# """ """ ######### # #??????????????????? | | #?# """ """ #??########/###????????????????? | | #?# #??# #????????????????? | | #?# #??## ""#####????????????? | +----------------------------------------------------+ Best States ------------- Heat Dissipation 63 Energy Generation 14 Energy Capacity 280 Matter Stores 300 Matter Capacity 300 Sight Range 18 Robot Scan Range 15 Terrain Scan Range 16 Terrain Scan Density 10 Evasion (%) 55 Item Schematics ----------------- None Robot Schematics ------------------ None Fabricated ------------ Nothing Repaired ---------- Nothing Alien Tech Used ----------------- None Achievements -------------- None Challenges ------------ None Game ------ Seed VortexPartitionGenerator Manual? 0 Play Time 00:20:59 Cumulative 22.7 hours Start 2025.07.29 @ 22:30:24 End 2025.07.31 @ 16:03:47 Sessions 2 Manual Loads 0 Difficulty Rogue Special Mode None Game No. 34 Rogue 34 Adventurer 0 Explorer 0 Win Type - Total 0 Types 0/0/0/0/0/0/0/0/0/0 Lore% 18 Gallery% 20 Achievement% 17 Wizard Run 0 Options --------- Layout 1 ASCII 0 Keyboard 0 Movement Mouse Keybinds 0 Fullscreen 1 Font 24/Smallcaps Map View 50x40 Zoom Use 0% Tactical HUD 1 Map Filters NONE Filters NONE Steam 1 RUN: f2e54cdf-35c7-4213-90a1-7cb856fc3aa4